fUSD/lending_fUSD_20260322
["ID","MTS","AMOUNT","RATE_DAILY","PERIOD"]
[408755654,1774198253769,-150.0,0.00016161,2]
[408755655,1774198253778,-150.0,0.00016161,2]
[408755656,1774198253787,-150.0,0.00016161,2]
[408755657,1774198253796,-150.0,0.00016161,2]
[408755658,1774198253806,-150.0,0.00016161,2]
[408755659,1774198253815,-154.91273396,0.00016161,2]
[408755660,1774198253824,-500.0,0.00016161,2]
[408755661,1774198253833,-500.0,0.00016161,2]
[408755662,1774198253842,-500.0,0.00016161,2]
[408755663,1774198253852,-500.0,0.00016161,2]
[408755664,1774198253865,-500.0,0.00016161,2]
[408755665,1774198253875,-500.0,0.00016161,2]
[408755666,1774198253885,-500.0,0.00016161,2]
[408755667,1774198253898,-500.0,0.00016161,2]
[408755668,1774198253907,-500.0,0.00016161,2]
[408755669,1774198253916,-500.0,0.00016161,2]
[408755670,1774198253925,-500.0,0.00016161,2]
[408755671,1774198253938,-500.20284577,0.00016161,2]
[408755672,1774198253947,-214.153158,0.00016161,2]
[408755673,1774198253956,-500.0,0.00016164,2]
[408755674,1774198253965,-500.0,0.00016164,2]
[408755675,1774198253974,-500.0,0.00016164,2]
[408755676,1774198253983,-500.0,0.00016164,2]
[408755677,1774198253992,-500.0,0.00016164,2]
[408755678,1774198254001,-500.0,0.00016164,2]
[408755679,1774198254011,-556.71503579,0.00016164,2]
[408755680,1774198254021,-500.0,0.00016164,2]
[408755681,1774198254031,-500.0,0.00016164,2]
[408755682,1774198254040,-500.0,0.00016164,2]
[408755683,1774198254049,-500.0,0.00016164,2]
[408755684,1774198254059,-500.0,0.00016164,2]
[408755685,1774198254068,-500.0,0.00016164,2]
[408755686,1774198254077,-500.0,0.00016164,2]
[408755687,1774198254087,-500.0,0.00016164,2]
[408755688,1774198254096,-1655.0,0.00016174,5]
[408755689,1774198254105,-501.0,0.00016176,3]
[408755690,1774198254115,-5000.00372344,0.000162,5]
[408755691,1774198254124,-164.5519,0.000162,2]
[408755692,1774198254133,-790.15,0.000162,2]
[408755693,1774198254142,-521.22781756,0.00016206,2]
[408755694,1774198254152,-151.0,0.00016206,2]
[408755695,1774198254161,-151.0,0.00016206,2]
[408755696,1774198254170,-151.0,0.00016206,2]
[408755697,1774198254180,-153.0,0.00016206,2]
[408755698,1774198254189,-152.9423243,0.00016206,2]
[408755699,1774198254198,-153.0,0.00016206,2]
[408755700,1774198254208,-153.0,0.00016206,2]
[408755701,1774198254217,-239.0021021,0.00016206,2]
[408755702,1774198254226,-151.0,0.00016206,2]
[408755703,1774198254236,-634.95984116,0.00016206,2]
[408755704,1774198254245,-151.0,0.00016206,2]
[408755705,1774198254254,-180.65887883,0.00016206,2]
[408755706,1774198254263,-4000.0,0.00016282,2]
[408755707,1774198254273,-151.0,0.00016303,2]
[408755708,1774198254282,-200.0,0.00016303,2]
[408755709,1774198254292,-2000.0,0.000164,2]
[408755710,1774198254301,-500.0,0.00016437,2]
[408755711,1774198254310,-163.0,0.00016438,2]
[408755712,1774198254319,-200.0,0.00016438,2]
[408755713,1774198254329,-250.0,0.00016438,2]
[408755714,1774198254338,-529.59,0.00016438,2]
[408755715,1774198254347,-1825.44,0.00016438,2]
[408755716,1774198254356,-151.0,0.00016438,2]
[408755717,1774198254365,-151.0,0.00016438,2]
[408755718,1774198254374,-151.0,0.00016438,2]
[408755719,1774198254384,-151.0,0.00016438,2]
[408755720,1774198254393,-151.0,0.00016438,2]
[408755721,1774198254405,-151.0,0.00016438,2]
[408755722,1774198254414,-151.0,0.00016438,2]
[408755723,1774198254424,-151.0,0.00016438,2]
[408755724,1774198254433,-151.0,0.00016438,2]
[408755725,1774198254442,-151.0,0.00016438,2]
[408755726,1774198254452,-151.0,0.00016438,2]
[408755727,1774198254462,-151.0,0.00016438,2]
[408755728,1774198254471,-151.0,0.00016438,2]
[408755729,1774198254481,-151.0,0.00016438,2]
[408755730,1774198254490,-151.0,0.00016438,2]
[408755731,1774198254500,-151.0,0.00016438,2]
[408755732,1774198254511,-151.0,0.00016438,2]
[408755733,1774198254521,-273.552104,0.00016438,2]
[408755734,1774198254531,-151.0,0.00016438,2]
[408755735,1774198254541,-151.0,0.00016438,2]
[408755736,1774198254552,-151.0,0.00016438,2]
[408755737,1774198254561,-151.0,0.00016438,2]
[408755738,1774198254570,-151.0,0.00016438,2]
[408755739,1774198254579,-151.0,0.00016438,2]
[408755740,1774198254589,-151.0,0.00016438,2]
[408755741,1774198254598,-151.0,0.00016438,2]
[408755742,1774198254607,-428.378682,0.00016438,2]
[408755743,1774198254615,-428.378682,0.00016438,2]
[408755744,1774198254624,-428.378682,0.00016438,2]
[408755745,1774198254634,-428.378682,0.00016438,2]
[408755746,1774198254643,-428.378682,0.00016438,2]
[408755747,1774198254652,-428.378682,0.00016438,2]
[408755748,1774198254662,-428.378682,0.00016438,2]
[408755749,1774198254672,-428.378682,0.00016438,2]
[408755750,1774198254682,-428.378682,0.00016438,2]
[408755751,1774198254692,-428.378682,0.00016438,2]
[408755752,1774198254701,-428.378682,0.00016438,2]
[408755753,1774198254711,-428.378682,0.00016438,2]
[408755754,1774198254721,-428.378682,0.00016438,2]
[408755755,1774198254731,-428.378682,0.00016438,2]
[408755756,1774198254741,-428.378682,0.00016438,2]
[408755757,1774198254751,-428.378682,0.00016438,2]
[408755758,1774198254760,-428.378682,0.00016438,2]
[408755759,1774198254770,-428.378682,0.00016438,2]
[408755760,1774198254779,-428.378682,0.00016438,2]
[408755761,1774198254797,-428.378676,0.00016438,2]
[408755762,1774198254808,-152.0,0.00016438,2]
[408755763,1774198254818,-182.84119736,0.00016438,2]
[408755764,1774198254827,-2879.0,0.00016456,2]
[408755765,1774198254836,-998.0,0.000165,2]
[408755766,1774198254846,-312.0,0.000165,2]
[408755767,1774198254859,-3267.70523285,0.0001666,2]
[408755768,1774198254868,-4000.0,0.0001667,2]
[408755769,1774198254878,-1327.13,0.000167,2]
[408755770,1774198254887,-166.89,0.00016712,2]
[408755771,1774198254899,-436.52,0.00016736,2]
[408755772,1774198254909,-222.0,0.00016738,3]
[408755773,1774198254920,-450.0,0.0001683,2]
[408755774,1774198254933,-450.0,0.0001683,7]
[408755775,1774198254942,-350.0,0.00016832,2]
[408755776,1774198254953,-287.12570892,0.00016849,2]
[408755777,1774198254963,-9035.0,0.00016849,2]
[408755778,1774198254973,-2258.0,0.00016849,2]
[408755779,1774198254983,-151.0,0.00016851,2]
[408755780,1774198254993,-200.0,0.00016851,2]
[408755781,1774198255002,-688.0,0.00016855,2]
[408755782,1774198255011,-554.45714043,0.000169,2]
[408755783,1774198255021,-501.0,0.00016901,4]
[408755784,1774198255031,-1206.6,0.0001693,2]
[408755785,1774198255040,-500.0,0.00016999,2]
[408755786,1774198255050,-1206.6,0.00016999,2]
[408755787,1774198255059,-1206.6,0.00016999,2]
[408755788,1774198255069,-500.0,0.00016999,2]
[408755789,1774198255078,-512.77,0.00016999,2]
[408755790,1774198255087,-300.0,0.00016999,2]
[408755791,1774198255097,-300.0,0.00016999,2]
[408755792,1774198255106,-300.0,0.00016999,2]
[408755793,1774198255116,-300.0,0.00016999,2]
[408755794,1774198255126,-300.0,0.00016999,2]
[408755795,1774198255135,-300.0,0.00016999,2]
[408755796,1774198255145,-254795.33750834,0.00017,2]
[408755797,1774198255154,-484.0,0.00017,2]
[408755798,1774198255169,-356.0,0.00017,2]
[408755799,1774198255179,-2600.0,0.00017,2]
[408755800,1774198255188,-250.0,0.00017,2]
[408755801,1774198255198,-200.0,0.00017,2]
[408755802,1774198255207,-191.0,0.00017,2]
[408755803,1774198255217,-200.0,0.00017,3]
[408755804,1774198255226,-294.560932,0.00017,2]
[408755805,1774198255236,-151.0,0.00017,2]
[408755806,1774198255246,-151.0,0.00017,2]
[408755807,1774198255256,-235.384868,0.00017,2]
[408755808,1774198255266,-235.384868,0.00017,2]
[408755809,1774198255276,-235.384868,0.00017,2]
[408755810,1774198255285,-235.384873,0.00017,2]
[408755811,1774198255295,-151.0,0.00017,2]
[408755812,1774198255305,-151.0,0.00017,2]
[408755813,1774198255315,-350.0,0.00017,2]
[408755814,1774198255324,-770.45154855,0.00017,2]
[408755815,1774198255334,-160.0,0.00017,3]
[408755816,1774198255343,-160.0,0.00017,3]
[408755817,1774198255352,-528.20672675,0.00017,2]
[408755818,1774198255362,-4000.0,0.00017058,2]
[408755819,1774198255371,-1758.18,0.000171,2]
[408755820,1774198255381,-1821.72,0.000171,2]
[408755821,1774198255391,-419.62947345,0.00017144,3]
[408755822,1774198255401,-214.153158,0.00017148,2]
[408755823,1774198255411,-300.0,0.00017151,2]
[408755824,1774198255420,-1571.95,0.000172,2]
[408755825,1774198255432,-500.0,0.00017205,2]
[408755826,1774198255441,-500.0,0.00017218,2]
[408755827,1774198255451,-500.0,0.00017218,2]
[408755828,1774198255462,-512.77,0.00017218,2]
[408755829,1774198255472,-271.41195155,0.00017399,2]
[408755830,1774198255482,-200.0,0.00017399,2]
[408755831,1774198255493,-11332.45164921,0.00017491,2]
[408755832,1774198255503,-2542.46,0.000175,2]
[408755833,1774198255513,-1095.51360203,0.00017532,2]
[408755834,1774198255528,-155.0,0.00017599,2]
[408755835,1774198255538,-168.4054,0.000176,2]
[408755836,1774198255548,-790.15,0.000176,2]
[408755837,1774198255558,-501.0,0.00017626,5]
[408755838,1774198255568,-155.0,0.00017696,2]
[408755839,1774198255578,-787.83165234,0.000177,2]
[408755840,1774198255588,-403.0,0.000177,5]
[408755841,1774198255598,-800.0,0.00017808,2]
[408755842,1774198255608,-621.78829552,0.00017945,2]
[408755843,1774198255618,-747.8093786,0.00017945,2]
[408755844,1774198255628,-328.42232601,0.00017945,3]
[408755845,1774198255637,-200.0,0.00017947,2]
[408755846,1774198255647,-309.27107728,0.00018,2]
[408755847,1774198255656,-152.39372009,0.00018,2]
[408755848,1774198255668,-158.73,0.00018,2]
[408755849,1774198255679,-1704.91,0.00018024,2]
[408755850,1774198255690,-160.11,0.00018063,2]
[408755851,1774198255700,-1327.13,0.000181,2]
[408755852,1774198255711,-199.83,0.000183,13]
[408755853,1774198255721,-501.0,0.00018352,5]
[408755854,1774198255732,-436.53,0.00018359,2]
[408755855,1774198255742,-200.0,0.00018495,2]
[408755856,1774198255751,-9890.0,0.00018534,2]
[408755857,1774198255761,-3162.0,0.00018534,2]
[408755858,1774198255771,-222.0,0.00018545,3]
[408755859,1774198255783,-151.0,0.00018559,2]
[408755860,1774198255795,-288.176312,0.00018559,2]
[408755861,1774198255806,-1177.960495,0.00018559,2]
[408755862,1774198255817,-1177.960495,0.00018559,2]
[408755863,1774198255828,-1177.960495,0.00018559,2]
[408755864,1774198255840,-1177.960501,0.00018559,2]
[408755865,1774198255852,-1758.18,0.000186,2]
[408755866,1774198256165,-1821.72,0.000186,2]
[408755867,1774198256192,-1571.95,0.000187,2]
[408755868,1774198256202,-2542.46,0.000189,2]
[408755869,1774198256212,-170.12,0.00019,2]
[408755870,1774198256222,-172.349,0.00019,2]
[408755871,1774198256232,-400.0,0.00019,2]
[408755872,1774198256242,-1343.44574525,0.00019,2]
[408755873,1774198256252,-361.23060898,0.0001901,7]
[408755874,1774198256261,-1206.6,0.00019033,2]
[408755875,1774198256271,-200.0,0.00019043,2]
[408755876,1774198256281,-501.0,0.00019077,6]
[408755877,1774198256290,-11332.45164921,0.00019106,2]
[408755878,1774198256300,-214.153158,0.00019175,2]
[408755879,1774198256310,-500.0,0.00019176,2]
[408755880,1774198256320,-300.0,0.00019177,2]
[408755881,1774198256330,-150.0,0.00019178,2]
[408755882,1774198256339,-150.0,0.00019178,2]
[408755883,1774198256348,-150.0,0.00019178,2]
[408755884,1774198256358,-163.19079758,0.00019178,2]
[408755885,1774198256367,-305.88,0.00019178,2]
[408755886,1774198256377,-152.854005,0.00019178,3]
[408755887,1774198256389,-151.0,0.00019178,2]
[408755888,1774198256398,-151.0,0.00019178,2]
[408755889,1774198256408,-151.0,0.00019178,2]
[408755890,1774198256417,-151.0,0.00019178,2]
[408755891,1774198256426,-151.0,0.00019178,2]
[408755892,1774198256436,-151.0,0.00019178,2]
[408755893,1774198256446,-151.0,0.00019178,2]
[408755894,1774198256455,-151.0,0.00019178,2]
[408755895,1774198256464,-151.0,0.00019178,2]
[408755896,1774198256474,-151.0,0.00019178,2]
[408755897,1774198256483,-556.466781,0.00019178,2]
[408755898,1774198256492,-556.466781,0.00019178,2]
[408755899,1774198256501,-556.466781,0.00019178,2]
[408755900,1774198256511,-556.466781,0.00019178,2]
[408755901,1774198256520,-556.466781,0.00019178,2]
[408755902,1774198256529,-556.466781,0.00019178,2]
[408755903,1774198256539,-556.466781,0.00019178,2]
[408755904,1774198256548,-556.466781,0.00019178,2]
[408755905,1774198256557,-556.466781,0.00019178,2]
[408755906,1774198256567,-556.466781,0.00019178,2]
[408755907,1774198256576,-556.466781,0.00019178,2]
[408755908,1774198256585,-556.466781,0.00019178,2]
[408755909,1774198256595,-556.466781,0.00019178,2]
[408755910,1774198256604,-556.466781,0.00019178,2]
[408755911,1774198256613,-556.466781,0.00019178,2]
[408755912,1774198256623,-556.466781,0.00019178,2]
[408755913,1774198256632,-556.466781,0.00019178,2]
[408755914,1774198256641,-556.466781,0.00019178,2]
[408755915,1774198256650,-556.466781,0.00019178,2]
[408755916,1774198256660,-556.466779,0.00019178,2]
[408755917,1774198256669,-152.957474,0.00019178,2]
[408755918,1774198256678,-152.957474,0.00019178,2]
[408755919,1774198256688,-152.957474,0.00019178,2]
[408755920,1774198256697,-152.957474,0.00019178,2]
[408755921,1774198256706,-152.957474,0.00019178,2]
[408755922,1774198256716,-152.957474,0.00019178,2]
[408755923,1774198256725,-152.957474,0.00019178,2]
[408755924,1774198256735,-152.957474,0.00019178,2]
[408755925,1774198256745,-152.957474,0.00019178,2]
[408755926,1774198256754,-152.957474,0.00019178,2]
[408755927,1774198256774,-152.957474,0.00019178,2]
[408755928,1774198256784,-152.957474,0.00019178,2]
[408755929,1774198256794,-152.957474,0.00019178,2]
[408755930,1774198256804,-152.957474,0.00019178,2]
[408755931,1774198256814,-152.957474,0.00019178,2]
[408755932,1774198256824,-152.957474,0.00019178,2]
[408755933,1774198256834,-152.957474,0.00019178,2]
[408755934,1774198256844,-152.957474,0.00019178,2]
[408755935,1774198256856,-152.957474,0.00019178,2]
[408755936,1774198256867,-152.957474,0.00019178,2]
[408755937,1774198256877,-566.548979,0.00019178,2]
[408755938,1774198256887,-566.548979,0.00019178,2]
[408755939,1774198256899,-566.548979,0.00019178,2]
[408755940,1774198256909,-566.548979,0.00019178,2]
[408755941,1774198256919,-566.548979,0.00019178,2]
[408755942,1774198256929,-566.548979,0.00019178,2]
[408755943,1774198256939,-566.548979,0.00019178,2]
[408755944,1774198256949,-566.548979,0.00019178,2]
[408755945,1774198256959,-566.548979,0.00019178,2]
[408755946,1774198256969,-566.548979,0.00019178,2]
[408755947,1774198256979,-566.548979,0.00019178,2]
[408755948,1774198256989,-566.548979,0.00019178,2]
[408755949,1774198256999,-566.548979,0.00019178,2]
[408755950,1774198257009,-566.548979,0.00019178,2]
[408755951,1774198257019,-566.548979,0.00019178,2]
[408755952,1774198257029,-566.548979,0.00019178,2]
[408755953,1774198257040,-566.548979,0.00019178,2]
[408755954,1774198257050,-566.548979,0.00019178,2]
[408755955,1774198257061,-566.548979,0.00019178,2]
[408755956,1774198257071,-566.548987,0.00019178,2]
[408755957,1774198257082,-500.0,0.00019178,2]
[408755958,1774198257092,-271.812456,0.00019178,2]
[408755959,1774198257102,-271.812456,0.00019178,2]
[408755960,1774198257112,-271.812456,0.00019178,2]
[408755961,1774198257122,-271.812456,0.00019178,2]
[408755962,1774198257133,-271.812456,0.00019178,2]
[408755963,1774198257144,-271.812456,0.00019178,2]
[408755964,1774198257154,-271.812456,0.00019178,2]
[408755965,1774198257164,-271.812456,0.00019178,2]
[408755966,1774198257175,-271.812456,0.00019178,2]
[408755967,1774198257186,-271.812456,0.00019178,2]
[408755968,1774198257197,-271.812456,0.00019178,2]
[408755969,1774198257207,-271.812456,0.00019178,2]
[408755970,1774198257218,-271.812456,0.00019178,2]
[408755971,1774198257228,-271.812456,0.00019178,2]
[408755972,1774198257240,-271.812456,0.00019178,2]
[408755973,1774198257250,-271.812456,0.00019178,2]
[408755974,1774198257260,-271.812456,0.00019178,2]
[408755975,1774198257270,-271.812456,0.00019178,2]
[408755976,1774198257280,-271.812456,0.00019178,2]
[408755977,1774198257291,-271.812456,0.00019178,2]
[408755978,1774198257301,-150.0,0.00019178,2]
[408755979,1774198257316,-150.0,0.00019178,2]
[408755980,1774198257327,-150.0,0.00019178,2]
[408755981,1774198257338,-160.20152507,0.00019178,2]
[408755982,1774198257349,-155.0,0.00019199,2]
[408755983,1774198257360,-500.0,0.00019199,2]
[408755984,1774198257371,-298.09077841,0.00019199,2]
[408755985,1774198257382,-548.6384638,0.00019199,2]
[408755986,1774198257392,-512.77,0.00019199,2]
[408755987,1774198257403,-300.0,0.00019199,2]
[408755988,1774198257413,-300.0,0.00019199,2]
[408755989,1774198257424,-300.0,0.00019199,2]
[408755990,1774198257436,-300.0,0.00019199,2]
[408755991,1774198257447,-300.0,0.00019199,2]
[408755992,1774198257458,-134938.59,0.000192,2]
[408755993,1774198257470,-150.0558256,0.000192,2]
[408755994,1774198257481,-154.05792023,0.00019317,2]
[408755995,1774198257491,-155.0,0.00019319,3]
[408755996,1774198257502,-250.0,0.00019343,2]
[408755997,1774198257512,-1488.63,0.00019476,2]
[408755998,1774198257522,-3560.32,0.00019476,2]
[408755999,1774198257532,-3168.89,0.00019476,2]
[408756000,1774198257542,-1214.78,0.00019476,2]
[408756001,1774198257553,-797.44,0.000195,2]
[408756002,1774198257563,-200.0,0.00019591,2]
[408756003,1774198257574,-1206.6,0.00019686,2]
[408756004,1774198257585,-1327.13,0.000197,7]
[408756005,1774198257595,-150.0,0.000197,2]
[408756006,1774198257605,-150.0,0.00019726,2]
[408756007,1774198257616,-250.0,0.00019726,2]
[408756008,1774198257627,-250.0,0.00019726,2]
[408756009,1774198257638,-501.0,0.00019802,7]
[408756010,1774198257648,-937.48008137,0.0001995,15]
[408756011,1774198257659,-300.0,0.00019999,2]
[408756012,1774198257669,-300.0,0.00019999,2]
[408756013,1774198257680,-354.82592437,0.00019999,2]
[408756014,1774198257690,-300.0,0.00019999,2]
[408756015,1774198257701,-440.6788474,0.00019999,2]
[408756016,1774198257711,-177.59824546,0.0002,2]
[408756017,1774198257722,-502.40860777,0.0002,10]
[408756018,1774198257732,-533.60055217,0.0002,7]
[408756019,1774198257742,-152.0,0.0002,2]
[408756020,1774198257752,-602.60506569,0.0002,2]
[408756021,1774198257763,-353.84170086,0.0002,120]
[408756022,1774198257773,-208.0,0.0002,13]
[408756023,1774198257784,-500.0,0.0002,2]
[408756024,1774198257794,-303.0,0.0002,2]
[408756025,1774198257805,-166.56,0.0002,14]
[408756026,1774198257815,-150.0,0.0002,2]
[408756027,1774198257826,-150.0,0.0002,2]
[408756028,1774198257837,-150.0,0.0002,2]
[408756029,1774198257847,-150.0,0.0002,2]
[408756030,1774198257865,-500.0,0.0002,2]
[408756031,1774198257876,-134938.59,0.0002,2]
[408756032,1774198257886,-191.31,0.0002,2]
[408756033,1774198257896,-191.31,0.0002,2]
[408756034,1774198257907,-534.0,0.0002,2]
[408756035,1774198257917,-287.37885566,0.0002,2]
[408756036,1774198257929,-256.77073787,0.00020139,2]
[408756037,1774198257940,-1704.91,0.00020187,2]
[408756038,1774198257950,-500.0,0.00020253,2]
[408756039,1774198257960,-150.0,0.00020274,2]
[408756040,1774198257971,-350.0,0.00020274,2]
[408756041,1774198257981,-350.0,0.00020274,2]
[408756042,1774198257992,-6489.8,0.00020279,2]
[408756043,1774198258003,-150.0,0.00020293,2]
[408756044,1774198258015,-1539.0,0.000203,120]
[408756045,1774198258027,-176.3851,0.000203,2]
[408756046,1774198258038,-1758.18,0.000203,2]
[408756047,1774198258049,-1821.72,0.000203,2]
[408756048,1774198258060,-2542.46,0.000203,2]
[408756049,1774198258071,-160.11,0.00020321,2]
[408756050,1774198258082,-222.0,0.00020351,3]
[408756051,1774198258093,-2980.0,0.00020388,2]
[408756052,1774198258103,-1571.95,0.000204,2]
[408756053,1774198258114,-442.75,0.00020449,2]
[408756054,1774198258124,-438.79,0.00020449,2]
[408756055,1774198258135,-262.25132483,0.00020449,2]
[408756056,1774198258145,-262.25,0.00020449,2]
[408756057,1774198258155,-436.53,0.00020449,2]
[408756058,1774198258166,-501.0,0.00020527,7]
[408756059,1774198258176,-160.34,0.00020548,2]
[408756060,1774198258186,-644.79446246,0.00020684,2]
[408756061,1774198258197,-775.47832561,0.00020684,2]
[408756062,1774198258207,-154.05792023,0.00020696,2]
[408756063,1774198258217,-214.153158,0.00020701,2]
[408756064,1774198258228,-512.77,0.00020715,2]
[408756065,1774198258239,-11332.45164921,0.00020722,2]
[408756066,1774198258249,-8866.33628244,0.00020785,2]
[408756067,1774198258260,-500.0,0.00020799,2]
[408756068,1774198258270,-300.0,0.00020799,2]
[408756069,1774198258280,-300.0,0.00020799,2]
[408756070,1774198258290,-300.0,0.00020799,2]
[408756071,1774198258300,-134938.59,0.000208,2]
[408756072,1774198258311,-150.0,0.00020822,2]
[408756073,1774198258321,-450.0,0.00020822,2]
[408756074,1774198258331,-450.0,0.00020822,2]
[408756075,1774198258342,-688.8293877,0.000209,30]
[408756076,1774198258353,-739.12,0.000209,2]
[408756077,1774198258364,-902.0,0.000209,2]
[408756078,1774198258375,-198.2263952,0.00021,2]
[408756079,1774198258388,-160.0,0.00021,7]
[408756080,1774198258398,-213.8,0.00021,2]
[408756081,1774198258410,-213.8,0.00021,2]
[408756082,1774198258421,-450.0,0.00021,2]
[408756083,1774198258432,-1206.6,0.00021001,2]
[408756084,1774198258444,-300.0,0.00021001,2]
[408756085,1774198258455,-300.0,0.00021001,2]
[408756086,1774198258467,-800.0,0.00021002,2]
[408756087,1774198258987,-800.0,0.00021002,2]
[408756088,1774198259018,-800.0,0.00021002,2]
[408756089,1774198259029,-800.0,0.00021002,2]
[408756090,1774198259039,-800.0,0.00021002,2]
[408756091,1774198259049,-800.0,0.00021002,2]
[408756092,1774198259058,-800.0,0.00021002,2]
[408756093,1774198259068,-800.0,0.00021002,2]
[408756094,1774198259077,-800.0,0.00021002,2]
[408756095,1774198259086,-800.0,0.00021002,2]
[408756096,1774198259096,-800.0,0.00021002,2]
[408756097,1774198259106,-800.0,0.00021002,2]
[408756098,1774198259115,-800.0,0.00021002,2]
[408756099,1774198259124,-1468.68057106,0.00021002,2]
[408756100,1774198259134,-500.0,0.00021002,2]
[408756101,1774198259143,-500.0,0.00021002,2]
[408756102,1774198259153,-500.0,0.00021002,2]
[408756103,1774198259163,-500.0,0.00021002,2]
[408756104,1774198259172,-500.0,0.00021002,2]
[408756105,1774198259182,-684.45635165,0.00021002,2]
[408756106,1774198259192,-500.0,0.00021002,2]
[408756107,1774198259202,-500.0,0.00021002,2]
[408756108,1774198259212,-500.0,0.00021002,2]
[408756109,1774198259222,-616.35953626,0.00021002,2]
[408756110,1774198259231,-511.64553484,0.00021002,2]
[408756111,1774198259240,-700.0,0.00021002,2]
[408756112,1774198259250,-500.0,0.00021002,2]
[408756113,1774198259259,-1500.0,0.00021002,2]
[408756114,1774198259268,-700.0,0.00021002,2]
[408756115,1774198259278,-500.0,0.00021002,2]
[408756116,1774198259288,-1500.0,0.00021002,2]
[408756117,1774198259297,-700.0,0.00021002,2]
[408756118,1774198259307,-500.0,0.00021002,2]
[408756119,1774198259316,-1500.0,0.00021002,2]
[408756120,1774198259326,-700.0,0.00021002,2]
[408756121,1774198259337,-500.0,0.00021002,2]
[408756122,1774198259346,-1100.0,0.00021002,2]
[408756123,1774198259355,-1500.0,0.00021002,2]
[408756124,1774198259365,-700.0,0.00021002,2]
[408756125,1774198259374,-526.96332949,0.00021002,2]
[408756126,1774198259383,-1500.0,0.00021002,2]
[408756127,1774198259393,-700.0,0.00021002,2]
[408756128,1774198259402,-1500.0,0.00021002,2]
[408756129,1774198259411,-700.0,0.00021002,2]
[408756130,1774198259421,-1500.0,0.00021002,2]
[408756131,1774198259431,-700.0,0.00021002,2]
[408756132,1774198259440,-1500.0,0.00021002,2]
[408756133,1774198259450,-700.0,0.00021002,2]
[408756134,1774198259460,-1500.0,0.00021002,2]
[408756135,1774198259470,-700.0,0.00021002,2]
[408756136,1774198259479,-1500.0,0.00021002,2]
[408756137,1774198259489,-700.0,0.00021002,2]
[408756138,1774198259498,-509.10751589,0.00021002,2]
[408756139,1774198259508,-1500.0,0.00021002,2]
[408756140,1774198259517,-1302.09649328,0.00021002,2]
[408756141,1774198259527,-1500.0,0.00021002,2]
[408756142,1774198259536,-1100.0,0.00021002,2]
[408756143,1774198259546,-1500.0,0.00021002,2]
[408756144,1774198259555,-1100.0,0.00021002,2]
[408756145,1774198259565,-2831.92758367,0.00021002,2]
[408756146,1774198259574,-1100.0,0.00021002,2]
[408756147,1774198259584,-1100.0,0.00021002,2]
[408756148,1774198259593,-1100.0,0.00021002,2]
[408756149,1774198259602,-1100.0,0.00021002,2]
[408756150,1774198259611,-1100.0,0.00021002,2]
[408756151,1774198259621,-1100.0,0.00021002,2]
[408756152,1774198259630,-1100.0,0.00021002,2]
[408756153,1774198259639,-1100.0,0.00021002,2]